Cogmind - Beta 17 @@@ ROGUE MODE // 2026.07.12 @ 18:25:56 Player: TinyBoulder Result: Destroyed by 3E-ZV3(R) with Subdweller Laser Performance ------------- Evolutions (0) 0 Regions Visited (2) 400 Robots Destroyed (14) 70 Value Destroyed (469) 469 Prototype IDs (0) 0 Alien Tech Used (0) 0 Bonus (0) 0 TOTAL SCORE: 939 Bonus ------- None Cogmind --------- Core Integrity 0/250 Matter 227/300 Energy 200/200 System Corruption 0% Temperature Cool (6) Movement Rolling (95) Ox1 Location -10/Subcaves Parts ------- > --- POWER (1) -------- Subdweller Power Source > --- PROPULSION (2) --- Wheel Wheel > --- UTILITY (2) ------ Scrap Shield > --- WEAPON (2) ------- Autogun Subdweller Machine Gun > --- INVENTORY (5) ---- Subdweller Laser Subdweller Machine Gun Subdweller Shrapnel Launcher Peak State ------------ > --- POWER ------------ Subdweller Power Source > --- PROPULSION ------- Light Treads Wheel > --- UTILITY ---------- High-capacity Storage Unit Subdweller Optics > --- WEAPON ----------- Autogun Subdweller Machine Gun > --- INVENTORY -------- Light Ion Engine Subdweller Power Source Wheel Heat Sink Disposable Heat Sink Medium Storage Unit Subdweller Optics Subdweller Optics Scrap Shield Subdweller Laser Subdweller Beam Cannon Assault Rifle Assault Rifle Autogun Autogun Mini Grenade Launcher Mini Grenade Launcher [Rating: 14] Favorites ----------- Power Ion Engine Engine Ion Engine Propulsion Light Treads Treads Light Treads Wheel Wheel Utility High-capacity Storage Unit Device Subdweller Optics Storage High-capacity Storage Unit Processor Visual Processing Unit Protection Scrap Shield Weapon Autogun Energy Gun Medium Laser Energy Cannon Subdweller Beam Cannon Ballistic Gun Autogun Launcher Mini Grenade Launcher Build | -11 -10 -10 ------- Run | Yrd Mat Sub Slots Evolved . | . . . Power . | . . . Propulsion . | . . . Utility . | . . . Weapon . | . . . Parts Attached 23 | 6 9 8 Power 2 | 1 . 1 Engine 2 | 1 . 1 Core . | . . . Reactor . | . . . Propulsion 4 | 2 . 2 Treads 2 | 2 . . Leg . | . . . Wheel 2 | . . 2 Hover . | . . . Flight . | . . . Utility 9 | 1 5 3 Device 3 | . 1 2 Storage 4 | 1 3 . Processor 1 | . 1 . Hackware . | . . . Protection 1 | . . 1 Artifact . | . . . Weapon 8 | 2 4 2 Energy Gun 1 | 1 . . Energy Cannon 1 | . . 1 Ballistic Gun 5 | 1 3 1 Ballistic Cannon . | . . . Launcher 1 | . 1 . Special Weapon . | . . . Impact Weapon . | . . . Slashing Weapon . | . . . Piercing Weapon . | . . . Special Melee Weapon . | . . . Unidentified Prototypes . | . . . Parts Lost 3 | . . 3 Power 1 | . . 1 Propulsion 1 | . . 1 Utility . | . . . Weapon 1 | . . 1 Highest Loss Streak 2 | . . 2 To Critical Strikes . | . . . Average Backups 11 | 2 10 12 Power 1 | . 1 1 Propulsion 1 | 1 2 1 Utility 2 | . 2 4 Weapon 5 | . 5 6 Tool/Special . | . . . Unused Backups 14 | . 1 13 Power 2 | . . 2 Propulsion 1 | . . 1 Utility 4 | . . 4 Weapon 7 | . 1 6 Tool/Special . | . . . Average Slot Usage (%) 97 | . 98 97 Engine 13 | . 14 13 Treads 20 | . 28 14 Wheel 7 | . . 13 Device 6 | . 1 10 Storage 13 | . 14 13 Processor 6 | . 11 2 Energy Cannon 4 | . . 7 Ballistic Gun 23 | . 27 19 Peak Build Rating 14 | 6 11 14 Average Rating 10 | 4 10 11 On Entrance 5 | . 6 11 Avg Prop Armor Cover (%) 11 | . . 11 Naked Turns . | . . . Heaviest Build 58 | 14 51 58 Greatest Support 40 | 40 40 40 Greatest Overweight (x) 5 | . 1 5 Average Overweight (x) 2 | . . 4 Largest Inventory Capacity 20 | 8 20 20 Average Capacity 17 | 7 16 18 Most Carried 19 | 4 12 19 Average Carried 11 | 2 10 13 Final Capacity 20 | 8 20 5 Final Carried 12 | 4 12 3 Class Distribution -------------------- 100% | Mutant Dominant Class ---------------- Mutant | -10/Materials Mutant | -10/Subcaves Resources | -11 -10 -10 ----------- Run | Yrd Mat Sub Matter Collected 692 | 194 94 404 Remotely . | . . . Salvage Created 518 | . 94 424 Parts 30 | . 9 21 Haulers Intercepted . | . . . Recyclers Shooed . | . . . Parts Field Recycled . | . . . Retrieved Matter . | . . . Parts Self-Destructed 7 | . . 7 Prevented . | . . . Parts Restored . | . . . Kills | -11 -10 -10 ------- Run | Yrd Mat Sub Combat Hostiles Destroyed 14 | . 5 9 Guns 11 | . 3 8 Cannons 1 | . . 1 AOE 2 | . 2 . Classes Destroyed 3 | . 2 1 Swarmer 3 | . 3 . Grunt 4 | . 2 2 Subdweller 7 | . . 7 Best Kill Streak 4 | . 3 4 Combat Bots Only 4 | . 3 4 Max Kills in Single Turn 2 | . 2 1 Gunslinging . | . . . Exploded 2 | . 2 . Melee . | . . . Uniques/NPCs Destroyed . | . . . Combat | -11 -10 -10 -------- Run | Yrd Mat Sub Hostile Shots Fired 77 | . 24 53 Missed 15 | . 5 10 Hits 62 | . 19 43 Projectile 62 | . 19 43 AOE 3 | . . 3 Damage Taken 1169 | . 188 981 Core 268 | . 34 234 Absorbed by Shields . | . . . Core Remaining (%) 100 | 100 . . Volleys Fired 49 | . 12 37 Largest 2 | . 2 2 Hottest 80 | . 46 80 Shots Fired 87 | . 23 64 Gun 80 | . 22 58 Cannon 6 | . . 6 Launcher 1 | . 1 . Special . | . . . Kinetic 80 | . 22 58 Thermal 6 | . . 6 Explosive 1 | . 1 . Electromagnetic . | . . . Robot Hit Streak 21 | . 9 21 Robot Miss Streak 5 | . 5 1 Penetration Max . | . . . Secondary Targets 2 | . 1 1 Max Gunslinging Chain 1 | . 1 1 Shots Hit Robots 63 | . 14 49 Core Hits 21 | . 5 16 Critical Kills . | . . . Critical Parts Destroyed . | . . . Critical Strikes . | . . . Melee Attacks . | . . . Impact . | . . . Slashing . | . . . Piercing . | . . . Sneak Attacks . | . . . Combat Hostiles . | . . . Follow-up Attacks . | . . . Damage Inflicted 1203 | . 384 819 Guns 1013 | . 222 791 Cannons 28 | . . 28 Explosions 162 | . 162 . Melee . | . . . Ramming . | . . . Kinetic 1013 | . 222 791 Thermal 28 | . . 28 Explosive 162 | . 162 . Electromagnetic . | . . . Impact . | . . . Slashing . | . . . Piercing . | . . . Highest Corruption . | . . . Average Corruption . | . . . Corruption Purged . | . . . Corruption Blocked . | . . . Overload Shots . | . . . Overflow Damage . | . . . Projectiles . | . . . Explosions . | . . . Melee . | . . . Knockbacks . | . . . Impact . | . . . Kinetic . | . . . Secondary . | . . . Self-Inflicted Damage . | . . . Shots . | . . . Rammed . | . . . Targets Rammed . | . . . Kicked . | . . . Crushed . | . . . Highest Temperature 40 | . 40 4 Average Temperature 10 | . 14 3 Received Heat Transfer 312 | . 54 258 Siege Activations . | . . . Martial Activations . | . . . Shielding Activations . | . . . Robots Disrupted . | . . . Combat Hostiles . | . . . Robots Corrupted . | . . . Combat Hostiles . | . . . Parts Fried . | . . . Impact Corruptions . | . . . Robots Melted . | . . . Combat Hostiles . | . . . Parts Melted 1 | . . 1 Heat Transferred 37 | . . 37 Parts Sabotaged . | . . . Parts Stolen . | . . . Parts Stripped . | . . . Power Chain Reactions . | . . . Alert | -11 -10 -10 ------- Run | Yrd Mat Sub Maximum Alert Level . | . . . Low Security (%) 100 | 100 100 . Level 1 . | . . . Level 2 . | . . . Level 3 . | . . . Level 4 . | . . . Level 5 . | . . . High Security . | . . . Max Security . | . . . Peak Influence 89 | . 89 . Initial . | . . . Average 18 | . 21 . Influence Increases 185 | . 135 50 Destroy 0b10 Robot/C 140 | . 100 40 Destroy Leader 20 | . 10 10 Successful Hack 6 | . 6 . Disable Machine 15 | . 15 . Destroy Structure 4 | . 4 . Influence Decreases 185 | . 88 97 Entered New Map 23 | . . 23 Time Decay 152 | . 88 64 Lost Part 10 | . . 10 Squads Dispatched . | . . . Investigation . | . . . Extermination . | . . . Reinforcement . | . . . Assault . | . . . Garrison . | . . . Intercept . | . . . Searches Triggered . | . . . Construction Impeded . | . . . Haulers Reinforced . | . . . Active Scanning Responses . | . . . Cargo Convoy Interrupts . | . . . Stealth | -11 -10 -10 --------- Run | Yrd Mat Sub Distress Signals . | . . . Communications Jammed . | . . . Distress Signals . | . . . Times Spotted 20 | . 8 12 Peak Tracking Total 5 | . 5 3 Tactical Retreats . | . . . Traps | -11 -10 -10 ------- Run | Yrd Mat Sub Traps Triggered 1 | . 1 . Indirectly . | . . . Trap Hack Attempts . | . . . Triggered . | . . . Disarmed . | . . . Reprogrammed . | . . . Reused . | . . . Traps Extracted . | . . . Installed . | . . . Triggered . | . . . Machines | -11 -10 -10 ---------- Run | Yrd Mat Sub Machines Disabled 2 | . 1 1 Max in Single Turn 1 | . 1 1 Machines Repaired . | . . . Machines Dismantled . | . . . Machines Sabotaged . | . . . Overloaded Fab Kills . | . . . Hacking | -11 -10 -10 --------- Run | Yrd Mat Sub Machines Accessed 7 | . 6 1 Terminals 4 | . 4 . Fabricators . | . . . Repair Stations . | . . . Recycling Units 2 | . 2 . Scanalyzers . | . . . Garrison Access . | . . . Total Hacks 15 | . 11 4 Successful 10 | . 6 4 Failed 5 | . 5 . Catastrophic 1 | . 1 . Database Lockouts . | . . . Manual 5 | . 5 . Terminals 9 | . 9 . Fabricators . | . . . Repair Stations . | . . . Recycling Units 2 | . 2 . Scanalyzers . | . . . Garrison Access . | . . . Terminal Hacks 7 | . 3 4 Record 4 | . . 4 Robot Analysis 2 | . 2 . Locate Traps 1 | . 1 . Fabricator Hacks . | . . . Repair Station Hacks . | . . . Recycling Unit Hacks 2 | . 2 . Report Inventory 2 | . 2 . Scanalyzer . | . . . Garrison Access Hacks . | . . . Unauthorized Hacks 1 | . 1 . Terminals 1 | . 1 . Operators 1 | . 1 . Fabricators . | . . . Repair Stations . | . . . Recycling Units . | . . . Scanalyzers . | . . . Garrison Access . | . . . Data Cores Recovered . | . . . Used . | . . . Hacking Detections 4 | . 4 . Full Trace Events . | . . . Feedback Events . | . . . Feedback Blocked . | . . . Robot Schematics Acquired . | . . . Robots Built . | . . . Authchips . | . . . Time . | . . . Total Robot Build Rating . | . . . Part Schematics Acquired . | . . . Parts Built . | . . . Authchips . | . . . Time . | . . . Total Part Build Rating . | . . . Part Studies Acquired . | . . . Parts Repaired . | . . . Time . | . . . Parts Recycled . | . . . Recycled Matter . | . . . Retrieved Matter . | . . . Retrieved Components . | . . . Parts Scanalyzed . | . . . Part Schematics Acquired . | . . . Parts Damaged . | . . . Bothacking | -11 -10 -10 ------------ Run | Yrd Mat Sub Used RIF Installer . | . . . Robots Hacked . | . . . Non-combat . | . . . Combat . | . . . Robot Hacks Applied . | . . . Relay Couplers Released . | . . . Fabnet Peak Effective % . | . . . Robots Rewired . | . . . Allies Hacked . | . . . Hacks Repelled . | . . . Allies | -11 -10 -10 -------- Run | Yrd Mat Sub Total Allies . | . . . Largest Group . | . . . Highest-Rated Group . | . . . Highest-Rated Ally . | . . . Total Orders . | . . . Ally Attacks . | . . . Total Damage . | . . . Kills . | . . . Allies Corrupted . | . . . Allies Melted . | . . . Intel | -11 -10 -10 ------- Run | Yrd Mat Sub Active Infowar (turns) 967 | . 393 574 Optics 967 | . 393 574 Robot Analysis Total 2 | . 2 . Derelict Logs Recovered . | . . . Drone Launches . | . . . Drone Recoveries . | . . . Exploration | -11 -10 -10 ------------- Run | Yrd Mat Sub Turns Passed 1186 | 76 473 637 Spaces Moved 556 | 41 200 315 Core 1 | 1 . . Treads 256 | 40 200 16 Legs . | . . . Wheels 299 | . . 299 Hover . | . . . Flight . | . . . Fastest Speed 50 | 50 160 80 Average Speed 166 | 157 189 152 Slowest Speed 240 | 160 240 240 Overloaded Moves . | . . . Propulsion Burnouts . | . . . Robots Hopped . | . . . Potential Cave-ins 2 | . . 2 Cave-ins Triggered . | . . . Exploration Rate (%) 23 | 4 47 20 Regions Visited 2 Branch Regions 1 Pre-discovered Areas . | . . . Known Exits Taken . | . . . Unknown Exits Taken 2 | 1 1 . Scrap Searched . | . . . Spaces Dug . | . . . Terrain Destroyed 3 | . 3 . Melee . | . . . Projectile . | . . . AOE 3 | . 3 . Terrain Rammed . | . . . Walls Destroyed . | . . . Machines Disabled . | . . . Actions | -11 -10 -10 --------- Run | Yrd Mat Sub Total 743 | 50 275 418 Wait 60 | . 46 14 Move 554 | 40 199 315 Hop . | . . . Pick Up 34 | 4 5 25 Fast Attach 14 | 6 4 4 Attach 5 | . . 5 Detach 3 | . 1 2 Swap 8 | . 5 3 Drop 12 | . 3 9 Fire 49 | . 12 37 Melee . | . . . Ram . | . . . Kick . | . . . Crush . | . . . Escape Stasis . | . . . Rewire . | . . . Trap . | . . . Miscellaneous 4 | . . 4 Route ------- -11/Scrapyard -10/Materials (discovered 3 exits: [*Mat] / [*Min] / *Sub) -10/Subcaves History --------- Turn | Location | Event 41 | -11/Scrapyard | Discovered new exit (range 15) 77 | -11/Scrapyard | Entered Materials 218 | -10/Materials | Discovered new exit (range 3) 318 | -10/Materials | Build established: Mutant 339 | -10/Materials | Discovered new exit (range 7) 528 | -10/Materials | Discovered new exit (range 5) 550 | -10/Materials | Entered Subcaves 551 | -10/Subcaves | Approached by a straggling Scientist 577 | -10/Subcaves | Visited Clippyterm 584 | -10/Subcaves | Learned 40 Factory zone layouts 584 | -10/Subcaves | Learned Factory garrison access intel 1015 | -10/Subcaves | Core integrity fell below 50% 1018 | -10/Subcaves | Ambushed by Subdweller buried in earth 1018 | -10/Subcaves | Ambushed by Subdweller buried in earth 1020 | -10/Subcaves | Core integrity fell below 20% 1127 | -10/Subcaves | Shifting Twisted Machinery released Sub. Machine Gun 1146 | -10/Subcaves | Shifting Twisted Machinery released Shrapnel Trap 1187 | -10/Subcaves | Destroyed by 3E-ZV3(R) with Subdweller Laser Last Messages --------------- Sink. Sub. Machine Gun falls loose from the Twisted Machinery. 01127_ Dropped Lgt. Ion Engine. 01127_ Acquired Sub. Optics. 01129_ Subatomizers dissect the Disposable Heat Sink. 01129_ Dropped Autogun. 01130_ Acquired Sub. Shrapnel Launcher. 01132_ Dropped Heat Sink. 01132_ Acquired Sub. Monowheel. 01142_ Dropped Assault Rifle. 01143_ Acquired Sub. Machine Gun. Shrapnel Trap falls loose from the Twisted Machinery. 01171_ Dropped Sub. Optics. 01171_ Dropped Hcp. Storage Unit. 01179_ 8I-32L(R) destroyed. 01179_ Switching to secondary target: 3E-ZV3(R). 01183_ Subatomizers dissect the Sub. Optics. Map ----- +----------------------------------------------------+ | | | | | | | ?????????????????????????????????????????????????? | | ?????????????????????????????????????????????????? | | ?????????????????????????????????????????????????? | | ?????????????????????????????????????????????????? | | ?????????????????????????????????????????????????? | | ?????????????????????????????????????????????????? | | ?????????????????????????????????????????????????? | | ?????????????????????????????????????????????????? | | ?????????????????????????????????????????????????? | | ?????????????????????????????????????????????????? | | ?????????????????????????????????????????????????? | | ?????????????????????????????????????????????????? | | ?????????????????????????????????????????????????? | | ?????????????????????????????????????????????????? | | ??????????###????????????????????????????????????? | | ??????????#""####????????????????????????????????? | | ??????????#"""""##??####???###???????????????????? | | ??????????#""""""#### "####""##??????????????????? | | #?###??????# " "" """""#??????????????????? | | ### #####??# """""##?????????????????? | | * ##### ## " !["""" "#?????????????????? | | [ " # "#### ]=!## #????????????????? | | ## !% " ## "" ####]=!@#??????????????????????? | | ### &! """"# ##!R!###????????????????????? | | ## ""#"" & ####!]! #????????????????????? | | ## """#[# ""#??#%[= ?????????????????? | | """ #### " #??##! #??????????????? | | ""#?# "##???## ???????????? | | ##########?#### ##?????######## ????????? | | #??????????????##??????????????? ?????? | | #???????????????????????????????? ????? | | # #????????????????????????????????? ????? | | ?###??????????????????????????????????? ?????? | | ????????????????????????????????????????? #?????? | | ?????????????????????????????????????????????????? | | ????????????????????????????????????????????????? | | ???????????????????????????????????????????????? | | ?????????????????????????????????????????????????? | | ?????????????????????????????????????????????????? | | ?????????????????????????????????????????????????? | | ?????????????????????????????????????????????????? | | ?????????????????????????????????????????????????? | | ?????????????????????????????????????????????????? | | ?????????????????????????????????????????????????? | | ?????????????????????????????????????????????????? | | ?????????????????????????????????????????????????? | | ?????????????????????????????????????????????????? | +----------------------------------------------------+ Best States ------------- Heat Dissipation 35 Energy Generation 15 Energy Capacity 250 Matter Stores 300 Matter Capacity 300 Sight Range 21 Terrain Scan Density 10 Armor Coverage 800 Evasion (%) 40 Recoil Reduction 2 Item Schematics ----------------- None Robot Schematics ------------------ None Fabricated ------------ Nothing Repaired ---------- Nothing Studied --------- None Alien Tech Used ----------------- None Achievements -------------- Survival Of The Most Covered Challenges ------------ None Game ------ Seed EtherialZhirovStreamer Manual? 0 Play Time 00:15:20 Cumulative 135.2 hours Start 2026.07.12 @ 18:13:39 End 2026.07.12 @ 18:25:56 Sessions 1 Manual Loads 0 Difficulty Rogue Special Mode None Game No. 122 Rogue 121 Adventurer 0 Explorer 1 Win Type - Total 8 Types 5/0/1/1/0/0/0/1/0/0 Lore% 74 Gallery% 63 Achievement% 44 Wizard Run 0 Options --------- Layout 1 ASCII 0 Keyboard 0 Movement Arrows Keybinds 0 Fullscreen 1 Font 24/Smallcaps Map View 50x35 Zoom Use 0% Tactical HUD 1 Map Filters NONE Filters NONE Steam 1 RUN: 49aeb284-97d4-49b2-ae1d-8590ea51ac8e